Workbook

Sheet Simple Invoice
B2: Mini Map-Makers Global CIC
B3: Order Form Collins Atlases and Books
B4: Please complete
B5: Contact Name
B6: School Name
B7: Street Address
B8: City, | F8: Invoice number as follows:
B9: County | F9: School Name and Date in 6 number format 120326
B10: Postcode | F10: eg Delbany120326
B11: Phone | F11: Invoice No:
B12: E-mail | D12: add in req volumes | H12: =TODAY() -> 2026-06-26
B13: Visit https://harpercollins.co.uk/ for more details on books
B14: Book Title | C14: ISBN | D14: Volume | E14: RRP | F14: Discount | G14: Discounted Rate | H14: AMOUNT
B15: PRIMARY KS1 and KS2 BOOKS
B16: COLLINS FIRST ATLAS [Fourth edition] | C16: 978-0-00-871649-3 | E16: £5.99 | F16: 40% | G16: =Invoice[[#This Row],[RRP]]-(0.4*Invoice[[#This Row],[RRP]]) -> £3.59 | H16: =Invoice[[#This Row],[Volume]]*Invoice[[#This Row],[Discounted Rate]] -> £0.00
B17: COLLINS JUNIOR ATLAS [Seventh edition] | C17: 978-0-00-879430-9 | E17: £8.99 | F17: 40% | G17: =Invoice[[#This Row],[RRP]]-(0.4*Invoice[[#This Row],[RRP]]) -> £5.39 | H17: =Invoice[[#This Row],[Volume]]*Invoice[[#This Row],[Discounted Rate]] -> £0.00
B18: COLLINS PRIMARY ATLAS [Eighth edition] | C18: 978-0-00-871651-6 | E18: £7.99 | F18: 40% | G18: =Invoice[[#This Row],[RRP]]-(0.4*Invoice[[#This Row],[RRP]]) -> £4.79 | H18: =Invoice[[#This Row],[Volume]]*Invoice[[#This Row],[Discounted Rate]] -> £0.00
B20: WORLD AROUND US Collins Primary Geography Pupil Book 1 and 2 (Primary Geography) | C20: 978-0-00-756358-6 | E20: £9.50 | F20: 40% | G20: =Invoice[[#This Row],[RRP]]-(0.4*Invoice[[#This Row],[RRP]]) -> £5.70 | H20: =Invoice[[#This Row],[Volume]]*Invoice[[#This Row],[Discounted Rate]] -> £0.00
B21: WORLD AROUND US Collins Primary Geography Teacher’s Book 1 and 2 (Primary Geography): First edition | C21: 978-0-00-756363-0 | E21: £27.00 | F21: 40% | G21: =Invoice[[#This Row],[RRP]]-(0.4*Invoice[[#This Row],[RRP]]) -> £16.20 | H21: =Invoice[[#This Row],[Volume]]*Invoice[[#This Row],[Discounted Rate]] -> £0.00
B22: INVESTIGATION Collins Primary Geography Pupil Book 3 (Primary Geography) | C22: 978-0-00-756359-3 | E22: £9.50 | F22: 40% | G22: =Invoice[[#This Row],[RRP]]-(0.4*Invoice[[#This Row],[RRP]]) -> £5.70 | H22: =Invoice[[#This Row],[Volume]]*Invoice[[#This Row],[Discounted Rate]] -> £0.00
B23: INVESTIGATION Collins Primary Geography Teacher’s Book 3 (Primary Geography): First edition | C23: 978-0-00-756364-7 | E23: £27.00 | F23: 40% | G23: =Invoice[[#This Row],[RRP]]-(0.4*Invoice[[#This Row],[RRP]]) -> £16.20 | H23: =Invoice[[#This Row],[Volume]]*Invoice[[#This Row],[Discounted Rate]] -> £0.00
B24: MOVEMENT Collins Primary Geography Pupil Book 4 (Primary Geography) | C24: 978-0-00-756360-9 | E24: £9.50 | F24: 40% | G24: =Invoice[[#This Row],[RRP]]-(0.4*Invoice[[#This Row],[RRP]]) -> £5.70 | H24: =Invoice[[#This Row],[Volume]]*Invoice[[#This Row],[Discounted Rate]] -> £0.00
B25: MOVEMENT Collins Primary Geography Teacher’s Book 4 (Primary Geography) | C25: 978-0-00-756365-4 | E25: £27.00 | F25: 40% | G25: =Invoice[[#This Row],[RRP]]-(0.4*Invoice[[#This Row],[RRP]]) -> £16.20 | H25: =Invoice[[#This Row],[Volume]]*Invoice[[#This Row],[Discounted Rate]] -> £0.00
B26: CHANGE Collins Primary Geography Pupil Book 5 (Primary Geography) | C26: 978-0-00-756361-6 | E26: £9.50 | F26: 40% | G26: =Invoice[[#This Row],[RRP]]-(0.4*Invoice[[#This Row],[RRP]]) -> £5.70 | H26: =Invoice[[#This Row],[Volume]]*Invoice[[#This Row],[Discounted Rate]] -> £0.00
B27: CHANGE Collins Primary Geography Teacher’s Book 5 (Primary Geography) | C27: 978-0-00-756366-1 | E27: £27.00 | F27: 40% | G27: =Invoice[[#This Row],[RRP]]-(0.4*Invoice[[#This Row],[RRP]]) -> £16.20 | H27: =Invoice[[#This Row],[Volume]]*Invoice[[#This Row],[Discounted Rate]] -> £0.00
B28: ISSUES Collins Primary Geography Pupil Book 6 (Primary Geography) | C28: 978-0-00-756362-3 | E28: £9.50 | F28: 40% | G28: =Invoice[[#This Row],[RRP]]-(0.4*Invoice[[#This Row],[RRP]]) -> £5.70 | H28: =Invoice[[#This Row],[Volume]]*Invoice[[#This Row],[Discounted Rate]] -> £0.00
B29: ISSUES Collins Primary Geography Teacher’s Book 6 (Primary Geography) | C29: 978-0-00-756367-8 | E29: £27.00 | F29: 40% | G29: =Invoice[[#This Row],[RRP]]-(0.4*Invoice[[#This Row],[RRP]]) -> £16.20 | H29: =Invoice[[#This Row],[Volume]]*Invoice[[#This Row],[Discounted Rate]] -> £0.00
B31: UK in Maps: Explore the UK – past, present and future (Collins Primary Atlases): Third edition | C31: 978-0-00-855648-8 | E31: £7.99 | F31: 40% | G31: =Invoice[[#This Row],[RRP]]-(0.4*Invoice[[#This Row],[RRP]]) -> £4.79 | H31: =Invoice[[#This Row],[Volume]]*Invoice[[#This Row],[Discounted Rate]] -> £0.00
B32: UK in Maps Activities (Collins Primary Atlases) | E32: £10.00 | G32: £10.00 | H32: =Invoice[[#This Row],[Volume]]*Invoice[[#This Row],[Discounted Rate]] -> £0.00
B33: World in Maps: Explore the world – past, present and future (Collins Primary Atlases): Third edition | C33: 978-0-00-855647-1 | E33: £7.99 | F33: 40% | G33: =Invoice[[#This Row],[RRP]]-(0.4*Invoice[[#This Row],[RRP]]) -> £4.79 | H33: =Invoice[[#This Row],[Volume]]*Invoice[[#This Row],[Discounted Rate]] -> £0.00
B34: World in Maps Activities (Collins Primary Atlases) | E34: £10.00 | G34: £10.00 | H34: =Invoice[[#This Row],[Volume]]*Invoice[[#This Row],[Discounted Rate]] -> £0.00
B36: COLLINS CHILDREN’S WORLD WALL MAP: An illustrated poster for your wall [Second edition] | C36: 978-0-00-831979-3 | E36: £6.99 | F36: 40% | G36: =Invoice[[#This Row],[RRP]]-(0.4*Invoice[[#This Row],[RRP]]) -> £4.19 | H36: =Invoice[[#This Row],[Volume]]*Invoice[[#This Row],[Discounted Rate]] -> £0.00
B37: FLAGS OF THE WORLD: Fun flag facts, stats & quizzes [not-CN] | C37: 978-0-00-866351-3 | E37: £6.99 | F37: 40% | G37: =Invoice[[#This Row],[RRP]]-(0.4*Invoice[[#This Row],[RRP]]) -> £4.19 | H37: =Invoice[[#This Row],[Volume]]*Invoice[[#This Row],[Discounted Rate]] -> £0.00
B38: CHILDREN’S PICTURE ATLAS: Ideal way for kids to learn more about the world [Fourth edition] | C38: 978-0-00-879727-0 | E38: £9.99 | F38: 40% | G38: =Invoice[[#This Row],[RRP]]-(0.4*Invoice[[#This Row],[RRP]]) -> £5.99 | H38: =Invoice[[#This Row],[Volume]]*Invoice[[#This Row],[Discounted Rate]] -> £0.00
B40: SECONDARY KS3+ BOOKS
B41: COLLINS SCHOOL ATLAS [Seventh edition] | C41: 978-0-00-871650-9 | E41: £9.99 | F41: 40% | G41: =Invoice[[#This Row],[RRP]]-(0.4*Invoice[[#This Row],[RRP]]) -> £5.99 | H41: =Invoice[[#This Row],[Volume]]*Invoice[[#This Row],[Discounted Rate]] -> £0.00
B42: COLLINS STUDENT ATLAS [Eighth edition] | C42: 978-0-00-865285-2 | E42: £10.99 | F42: 40% | G42: =Invoice[[#This Row],[RRP]]-(0.4*Invoice[[#This Row],[RRP]]) -> £6.59 | H42: =Invoice[[#This Row],[Volume]]*Invoice[[#This Row],[Discounted Rate]] -> £0.00
B44: The Times Comprehensive Atlas of the World (16th edition) | C44: 978-0-00-861011-1 | E44: £175.00 | F44: 40% | G44: =Invoice[[#This Row],[RRP]]-(0.4*Invoice[[#This Row],[RRP]]) -> £105.00 | H44: =Invoice[[#This Row],[Volume]]*Invoice[[#This Row],[Discounted Rate]] -> £0.00
B45: The Times Reference Atlas of the World (10th edition) | C45: 978-0-00-869971-0 | E45: £60.00 | F45: 40% | G45: =Invoice[[#This Row],[RRP]]-(0.4*Invoice[[#This Row],[RRP]]) -> £36.00 | H45: =Invoice[[#This Row],[Volume]]*Invoice[[#This Row],[Discounted Rate]] -> £0.00
B46: The Times Desktop Atlas of the World (6th edition) | C46: 978-0-00-866352-0 | E46: £25.00 | F46: 40% | G46: =Invoice[[#This Row],[RRP]]-(0.4*Invoice[[#This Row],[RRP]]) -> £15.00 | H46: =Invoice[[#This Row],[Volume]]*Invoice[[#This Row],[Discounted Rate]] -> £0.00
B47: The Times Mini Atlas of the World (9th edition) | C47: 978-0-00-871851-0 | E47: £12.00 | F47: 40% | G47: =Invoice[[#This Row],[RRP]]-(0.4*Invoice[[#This Row],[RRP]]) -> £7.20 | H47: =Invoice[[#This Row],[Volume]]*Invoice[[#This Row],[Discounted Rate]] -> £0.00
B49: COLLINS WORLD ATLAS: PAPERBACK EDITION [14th edition] | C49: 978-0-00-869609-2 | E49: £7.99 | F49: 40% | G49: =Invoice[[#This Row],[RRP]]-(0.4*Invoice[[#This Row],[RRP]]) -> £4.79 | H49: =Invoice[[#This Row],[Volume]]*Invoice[[#This Row],[Discounted Rate]] -> £0.00
B50: COLLINS WORLD ATLAS: ESSENTIAL EDITION [Sixth edition] | C50: 978-0-00-869608-5 | E50: £14.99 | F50: 40% | G50: =Invoice[[#This Row],[RRP]]-(0.4*Invoice[[#This Row],[RRP]]) -> £8.99 | H50: =Invoice[[#This Row],[Volume]]*Invoice[[#This Row],[Discounted Rate]] -> £0.00
B51: COLLINS WORLD ATLAS: REFERENCE EDITION [Sixth edition] | C51: 978-0-00-869607-8 | E51: £25.00 | F51: 40% | G51: =Invoice[[#This Row],[RRP]]-(0.4*Invoice[[#This Row],[RRP]]) -> £15.00 | H51: =Invoice[[#This Row],[Volume]]*Invoice[[#This Row],[Discounted Rate]] -> £0.00
B52: COLLINS WORLD ATLAS: COMPLETE EDITION [Fifth edition] | C52: 978-0-00-869606-1 | E52: £35.00 | F52: 40% | G52: =Invoice[[#This Row],[RRP]]-(0.4*Invoice[[#This Row],[RRP]]) -> £21.00 | H52: =Invoice[[#This Row],[Volume]]*Invoice[[#This Row],[Discounted Rate]] -> £0.00
B54: Collins Key Stage 3 Geography – Geographical Enquiry Student Book 1 | C54: 978-0-00-741103-0 | E54: £17.99 | F54: 40% | G54: =Invoice[[#This Row],[RRP]]-(0.4*Invoice[[#This Row],[RRP]]) -> £10.79 | H54: =Invoice[[#This Row],[Volume]]*Invoice[[#This Row],[Discounted Rate]] -> £0.00
B55: Collins Key Stage 3 Geography – Geographical Enquiry Teacher's Book 1 | C55: 978-0-00-741115-3 | E55: £70.00 | F55: 40% | G55: =Invoice[[#This Row],[RRP]]-(0.4*Invoice[[#This Row],[RRP]]) -> £42.00 | H55: =Invoice[[#This Row],[Volume]]*Invoice[[#This Row],[Discounted Rate]] -> £0.00
B56: Collins Key Stage 3 Geography – Geographical Enquiry Student Book 2 | C56: 978-0-00-741116-0 | E56: £17.99 | F56: 40% | G56: =Invoice[[#This Row],[RRP]]-(0.4*Invoice[[#This Row],[RRP]]) -> £10.79 | H56: =Invoice[[#This Row],[Volume]]*Invoice[[#This Row],[Discounted Rate]] -> £0.00
B57: Collins Key Stage 3 Geography – Geographical Enquiry Teacher's Book 2 | C57: 978-0-00-741117-7 | E57: £70.00 | F57: 40% | G57: =Invoice[[#This Row],[RRP]]-(0.4*Invoice[[#This Row],[RRP]]) -> £42.00 | H57: =Invoice[[#This Row],[Volume]]*Invoice[[#This Row],[Discounted Rate]] -> £0.00
B58: Collins Key Stage 3 Geography – Geographical Enquiry Student Book 3 | C58: 978-0-00-741118-4 | E58: £17.99 | F58: 40% | G58: =Invoice[[#This Row],[RRP]]-(0.4*Invoice[[#This Row],[RRP]]) -> £10.79 | H58: =Invoice[[#This Row],[Volume]]*Invoice[[#This Row],[Discounted Rate]] -> £0.00
B59: Collins Key Stage 3 Geography – Geographical Enquiry Teacher's Book 3 | C59: 978-0-00-741119-1 | E59: £70.00 | F59: 40% | G59: =Invoice[[#This Row],[RRP]]-(0.4*Invoice[[#This Row],[RRP]]) -> £42.00 | H59: =Invoice[[#This Row],[Volume]]*Invoice[[#This Row],[Discounted Rate]] -> £0.00
C60: Total number: | D60: =SUM(Invoice[Volume]) -> 0 | F60: BACS | G60: Total to pay | H60: =SUM(H16:H59) -> £0.00
C61: Total Number: | D61: =SUM(Invoice[Volume]) -> 0 | F61: Credit card/cheque | G61: Total to pay | H61: =SUM(H16:H59)*0.04+(SUM(H16:H59)) -> £0.00
C62: Please DELETE/CROSS OUT the Method of payment NOT being used before sending
B64: #GettingChildrenMapping #InspiringwithMaps
B65: Please Pay (with your Invoice Number above as Reference)
B66: Silver7 Mapping Limited
B67: Sort Code: 09-01-28 | F67: Mini Map-Makers will be going into Silver7Mapping as of 1/10/2026
B68: Account Number: 84604636
B69: Once payment is received - your order is placed and we will inform you of delivery!
B70: Mini Map-Makers Global CIC, Prospect Cottage, Bedford Road Little Houghton, NN7 1AD | G70: Registered England: 12894493
B71: www.minimapmakers.com | C71: alice@minimapmakers.com | G71: Tel: 07470067531

Sheet Sheet1
A1: Collins Primary Geography Pupil Book 1 and 2 (Primary Geography)
A2: Primary Geography - Collins Primary Geography Pupil Book 1 and 2 (Primary Geography): First edition
A3: Primary Geography - Collins Primary Geography Pupil Book 3 (Primary Geography): First edition
